bitfinex/quotes_BTCUSD_20230117
["timestamp","ask_amount","ask_price","bid_price","bid_amount"]
[1673932030614,0.14770562,21181.0,21180.0,0.2232]
[1673932030615,0.00651046,21181.0,21180.0,0.2232]
[1673932031119,0.00651046,21181.0,21178.0,0.19072595]
[1673932031377,0.44278711,21181.0,21180.0,0.1108]
[1673932031631,0.44778711,21181.0,21180.0,0.1108]
[1673932031887,0.44278711,21181.0,21180.0,0.1108]
[1673932032144,0.44278711,21181.0,21180.0,0.1168]
[1673932032145,0.44778711,21181.0,21180.0,0.1168]
[1673932033439,0.01151046,21181.0,21180.0,0.228]
[1673932033687,0.01151046,21181.0,21180.0,0.308013]
[1673932033942,0.01151046,21181.0,21180.0,0.308813]
[1673932034442,0.00651046,21181.0,21180.0,0.302813]
[1673932034694,0.01151046,21181.0,21180.0,0.302813]
[1673932038659,0.01151046,21181.0,21180.0,1.35211583]
[1673932038885,0.01151046,21181.0,21180.0,1.63353288]
[1673932040024,0.01151046,21181.0,21180.0,1.93353288]
[1673932040311,0.01151046,21181.0,21180.0,1.63353288]
[1673932040312,0.00651046,21181.0,21180.0,1.63353288]
[1673932040837,0.00651046,21181.0,21180.0,0.85523288]
[1673932041092,0.00651046,21181.0,21180.0,0.94323288]
[1673932041350,0.00651046,21181.0,21180.0,0.85523288]
[1673932041613,0.00651046,21181.0,21180.0,1.34323288]
[1673932041872,0.00651046,21181.0,21180.0,1.25523288]
[1673932042132,0.00651046,21181.0,21180.0,1.34323288]
[1673932043659,0.00651046,21181.0,21180.0,1.55483288]
[1673932044134,0.00651046,21181.0,21180.0,1.45483288]
[1673932049563,0.01105962,21184.0,21181.0,0.10775703]
[1673932049814,0.01105962,21184.0,21183.0,0.1516]
[1673932050107,0.01105962,21184.0,21183.0,0.623676]
[1673932050333,0.01105962,21184.0,21183.0,0.703669]
[1673932050851,0.01105962,21184.0,21183.0,0.079993]
[1673932051123,0.01105962,21184.0,21181.0,0.47986503]
[1673932051375,0.321876,21183.0,21181.0,0.00775703]
[1673932051625,0.01105962,21184.0,21181.0,0.06475703]
[1673932055252,0.01105962,21184.0,21181.0,0.53687703]
[1673932055520,0.01105962,21184.0,21182.0,0.08]
[1673932055773,0.01105962,21184.0,21182.0,0.07836921]
[1673932056028,0.01105962,21184.0,21183.0,0.079994]
[1673932056564,0.01105962,21184.0,21182.0,0.07836921]
[1673932057640,0.01105962,21184.0,21183.0,0.079994]
[1673932057872,0.01205962,21184.0,21183.0,0.079994]
[1673932058106,0.01105962,21184.0,21183.0,0.079993]
[1673932058367,0.02105962,21184.0,21183.0,0.079993]
[1673932058627,0.01105962,21184.0,21183.0,0.079993]
[1673932058925,0.01105962,21184.0,21183.0,0.140993]
[1673932058926,0.01205962,21184.0,21183.0,0.140993]
[1673932059147,0.01205962,21184.0,21182.0,0.07836921]
[1673932059405,0.02205962,21184.0,21182.0,0.07836921]
[1673932059939,0.02205962,21184.0,21183.0,0.079994]
[1673932060236,0.02205962,21184.0,21182.0,0.07836921]
[1673932060443,0.01105962,21184.0,21183.0,0.059]
[1673932060704,0.01105962,21184.0,21182.0,0.07836921]
[1673932060957,0.01905962,21184.0,21182.0,0.07836921]
[1673932061222,0.01105962,21184.0,21181.0,0.00775703]
[1673932061480,0.01105962,21184.0,21183.0,0.059]
[1673932061759,0.01105962,21184.0,21181.0,0.00775703]
[1673932062002,0.01905962,21184.0,21181.0,0.00775703]
[1673932063048,0.01105962,21184.0,21181.0,0.00775703]
[1673932063298,0.01805962,21184.0,21183.0,0.007]
[1673932063548,0.01105962,21184.0,21181.0,0.00775703]
[1673932063807,0.01805962,21184.0,21181.0,0.01375703]
[1673932064060,0.01805962,21184.0,21181.0,0.00775703]
[1673932064061,0.01105962,21184.0,21181.0,0.00775703]
[1673932064318,0.01805962,21184.0,21183.0,0.007]
[1673932064577,0.01805962,21184.0,21181.0,0.00775703]
[1673932064801,0.02505962,21184.0,21181.0,0.01375703]
[1673932065042,0.01105962,21184.0,21181.0,0.00775703]
[1673932066098,0.01805962,21184.0,21183.0,0.007]
[1673932066347,0.01105962,21184.0,21181.0,0.00775703]
[1673932066620,0.01805962,21184.0,21181.0,0.01375703]
[1673932067146,0.61673366,21184.0,21181.0,0.01375703]
[1673932067401,0.49011362,21184.0,21181.0,0.01375703]
[1673932068435,0.01805962,21184.0,21181.0,0.01375703]
[1673932068692,0.01805962,21184.0,21181.0,0.55641279]
[1673932068947,0.01805962,21184.0,21182.0,0.08]
[1673932069222,0.01805962,21184.0,21181.0,0.62667657]
[1673932069512,0.01805962,21184.0,21182.0,0.079999]
[1673932069735,0.01805962,21184.0,21181.0,0.48587703]
[1673932070249,0.01105962,21184.0,21181.0,0.47987703]
[1673932070530,0.01805962,21184.0,21182.0,0.006]
[1673932070747,0.01805962,21184.0,21181.0,0.47987703]
[1673932070997,0.02505962,21184.0,21181.0,0.01375703]
[1673932071251,0.16625478,21184.0,21181.0,0.01375703]
[1673932071786,0.02505962,21184.0,21181.0,0.01375703]
[1673932072292,0.3780646,21184.0,21181.0,0.01375703]
[1673932075289,0.14119516,21183.0,21181.0,0.01375703]
[1673932075545,0.59197123,21183.0,21181.0,0.01375703]
[1673932075811,0.321876,21182.0,21181.0,0.01375703]
[1673932076066,1.35165905,21183.0,21181.0,0.01375703]
[1673932076579,1.35165905,21183.0,21181.0,0.00775703]
[1673932076580,1.61951899,21182.0,21181.0,0.00775703]
[1673932077357,1.47832383,21182.0,21181.0,0.00775703]
[1673932077620,0.46326275,21182.0,21181.0,0.00775703]
[1673932077881,0.46326275,21182.0,21181.0,0.06675703]
[1673932078425,1.40789759,21182.0,21181.0,0.00775703]
[1673932078677,0.47126275,21182.0,21181.0,0.00775703]
[1673932078936,1.62770905,21182.0,21181.0,0.00775703]
[1673932079965,1.76912574,21182.0,21181.0,0.00767448]
[1673932080222,1.4863223,21182.0,21181.0,0.00767448]
[1673932080478,1.76912574,21182.0,21181.0,0.00767448]
[1673932080737,2.24151061,21182.0,21181.0,0.00767448]
[1673932080993,2.15421331,21182.0,21181.0,0.00767448]
[1673932081215,2.24150178,21182.0,21181.0,0.00767448]
[1673932081684,2.02940551,21182.0,21181.0,0.00767448]
[1673932081948,3.63294059,21182.0,21181.0,0.00767448]
[1673932082210,3.29673023,21182.0,21181.0,0.00767448]
[1673932082469,3.720434,21182.0,21181.0,0.00767448]
[1673932082991,2.66610421,21182.0,21181.0,0.00767448]
[1673932083389,1.14717394,21182.0,21181.0,0.19840043]
[1673932083394,1.16417394,21182.0,21181.0,0.01367448]
[1673932083571,0.95226026,21182.0,21181.0,0.01367448]
[1673932083829,0.48016226,21182.0,21181.0,0.09645448]
[1673932084057,0.017,21182.0,21181.0,0.09645448]
[1673932084299,0.45077607,21183.0,21181.0,0.09045448]
[1673932084510,0.018,21182.0,21181.0,0.09645448]
[1673932085383,0.64474588,21184.0,21181.0,0.00767448]
[1673932085384,0.15234588,21184.0,21181.0,0.00767448]
[1673932085652,0.006,21182.0,21181.0,0.28118043]
[1673932085905,0.006,21182.0,21181.0,0.09045448]
[1673932086154,0.006,21182.0,21181.0,0.17045848]
[1673932086406,0.006,21182.0,21181.0,0.09045448]
[1673932086660,0.006,21182.0,21181.0,0.17046048]
[1673932087159,0.01105962,21184.0,21181.0,0.17046048]
[1673932087410,0.37027528,21184.0,21181.0,0.09045448]
[1673932087662,0.15234588,21184.0,21181.0,0.09045448]
[1673932087912,0.15234588,21184.0,21181.0,0.16545448]
[1673932087913,0.001,21182.0,21181.0,0.16545448]
[1673932088169,0.01105962,21184.0,21181.0,0.00767448]
[1673932088425,0.01705962,21184.0,21181.0,0.00767448]
[1673932088704,0.01105962,21184.0,21181.0,0.00767448]
[1673932088943,0.001,21182.0,21181.0,0.08267448]
[1673932089191,0.36427528,21184.0,21181.0,0.00767448]
[1673932090115,0.37027528,21184.0,21181.0,0.00767448]
[1673932090612,0.15834588,21184.0,21181.0,0.00767448]
[1673932090829,0.36427528,21184.0,21181.0,0.00767448]
[1673932091160,0.14128626,21183.0,21181.0,0.01367448]
[1673932091386,0.14128626,21183.0,21181.0,0.00767448]
[1673932091871,0.36427528,21184.0,21181.0,0.00767448]
[1673932092128,0.02905962,21184.0,21181.0,0.01367448]
[1673932092378,0.36427528,21184.0,21181.0,0.00767448]
[1673932092639,0.001,21183.0,21181.0,0.07267448]
[1673932092898,0.36427528,21184.0,21181.0,0.00767448]
[1673932093684,0.36427528,21184.0,21182.0,0.14860546]
[1673932093685,0.01105962,21184.0,21182.0,0.14860546]
[1673932093955,0.01105962,21184.0,21183.0,0.079996]
[1673932094209,0.01705962,21184.0,21183.0,0.079996]
[1673932094986,0.01105962,21184.0,21183.0,0.079996]
[1673932095238,0.01205962,21184.0,21183.0,0.144996]
[1673932095494,0.01105962,21184.0,21182.0,0.62069946]
[1673932095750,0.01205962,21184.0,21183.0,0.154993]
[1673932096765,0.01205962,21184.0,21183.0,0.075]
[1673932097027,0.01105962,21184.0,21182.0,0.07280546]
[1673932097329,0.01205962,21184.0,21182.0,0.14780546]
[1673932097536,0.01105962,21184.0,21182.0,0.07280546]
[1673932097783,0.01205962,21184.0,21183.0,0.075]
[1673932098023,0.01105962,21184.0,21180.0,0.14079954]
[1673932098274,0.55300169,21183.0,21182.0,0.075]
[1673932098540,1.80007995,21183.0,21178.0,0.21272185]
[1673932098787,1.40240395,21183.0,21178.0,0.21272185]
[1673932099033,0.1758,21182.0,21178.0,0.21272185]
[1673932099289,0.1758,21182.0,21178.0,0.14079954]
[1673932099539,0.647902,21182.0,21178.0,0.14079954]
[1673932100081,1.13010901,21182.0,21178.0,0.14079954]
[1673932100300,0.1758,21180.0,21177.0,0.14079954]
[1673932100556,0.321876,21179.0,21178.0,0.065]
[1673932101315,0.321876,21179.0,21176.0,0.06986367]
[1673932101559,0.321876,21178.0,21176.0,0.06986367]
[1673932101805,0.472166,21179.0,21176.0,0.06986367]
[1673932102051,0.473166,21179.0,21178.0,0.075]
[1673932102294,0.795042,21179.0,21178.0,0.075]
[1673932102820,0.795042,21179.0,21173.0,0.36000154]
[1673932102821,0.47090922,21177.0,21173.0,0.36000154]
[1673932103088,0.94312322,21177.0,21176.0,0.065]
[1673932103349,2.1193913,21177.0,21173.0,0.00807173]
[1673932103691,0.32199258,21176.0,21173.0,0.00807173]
[1673932103886,0.321876,21175.0,21173.0,0.00807173]
[1673932104141,0.421876,21174.0,21173.0,0.07307173]
[1673932104401,0.421876,21174.0,21173.0,0.00807173]
[1673932104666,0.321876,21174.0,21173.0,0.01407173]
[1673932104921,0.321876,21174.0,21173.0,0.00807173]
[1673932106282,0.473476,21174.0,21173.0,0.07307173]
[1673932107028,0.40307685,21175.0,21174.0,0.397176]
[1673932109065,0.40807685,21175.0,21174.0,0.397176]
[1673932109858,0.72995285,21175.0,21174.0,0.397176]
[1673932110868,0.80525285,21175.0,21174.0,0.397176]
[1673932112161,1.27750785,21175.0,21174.0,0.397176]
[1673932114248,0.80525285,21175.0,21174.0,0.397176]
[1673932114514,0.72995285,21175.0,21174.0,0.397176]
[1673932114767,0.40807685,21175.0,21174.0,0.397176]
[1673932115565,0.72995285,21175.0,21174.0,0.397176]
[1673932117297,0.40807685,21175.0,21174.0,0.397176]
[1673932117559,0.72995285,21175.0,21174.0,0.397176]
[1673932118580,0.40807685,21175.0,21174.0,0.397176]
[1673932119173,0.72995285,21175.0,21174.0,0.397176]
[1673932119391,0.40807685,21175.0,21174.0,0.397176]
[1673932119644,0.72995285,21175.0,21174.0,0.397176]
[1673932119888,0.40807685,21175.0,21174.0,0.397176]
[1673932120404,0.72995285,21175.0,21174.0,0.397176]
[1673932121450,0.005,21175.0,21174.0,0.397176]
[1673932123277,0.005,21175.0,21174.0,0.58790195]
[1673932123505,0.005,21175.0,21174.0,0.477229]
[1673932124007,0.005,21175.0,21174.0,1.02186579]
[1673932124803,0.005,21175.0,21174.0,1.41903442]
[1673932125060,0.005,21175.0,21174.0,1.79483442]
[1673932125310,0.00011658,21176.0,21175.0,0.27220256]
[1673932125576,0.00011658,21176.0,21175.0,1.44181046]
[1673932125817,0.00011658,21176.0,21175.0,1.52185646]
[1673932126311,0.00011658,21176.0,21175.0,1.12185646]
[1673932126572,0.00111658,21176.0,21175.0,0.88030356]
[1673932126888,0.00111658,21176.0,21175.0,1.20179499]
[1673932127104,0.00111658,21176.0,21175.0,0.88030356]
[1673932130299,0.00111658,21176.0,21175.0,0.79791356]
[1673932131018,0.00111658,21176.0,21175.0,0.72211356]
[1673932131266,0.00111658,21176.0,21175.0,0.63933356]
[1673932135484,0.00111658,21176.0,21175.0,0.08703256]
[1673932141288,0.32299258,21176.0,21175.0,0.08703256]
[1673932142101,1.10714458,21176.0,21175.0,0.08703256]
[1673932142341,1.24822497,21176.0,21175.0,0.08703256]
[1673932143382,1.10714458,21176.0,21175.0,0.08703256]
[1673932143642,0.87102458,21176.0,21175.0,0.08703256]
[1673932143898,0.87002458,21176.0,21175.0,0.00703256]
[1673932144164,0.87002458,21176.0,21175.0,0.00803256]
[1673932144692,0.39779258,21176.0,21175.0,0.00803256]
[1673932145751,0.53887297,21176.0,21175.0,0.00803256]
[1673932146565,0.39779258,21176.0,21175.0,0.00803256]
[1673932147115,0.00011658,21176.0,21175.0,0.00803256]
[1673932147377,0.00011658,21176.0,21175.0,0.08327256]
[1673932148757,0.00011658,21176.0,21175.0,0.00803256]
[1673932149525,0.00011658,21176.0,21175.0,0.00703256]
[1673932149872,0.01911658,21176.0,21175.0,0.01203256]
[1673932150139,0.00011658,21176.0,21175.0,0.00703256]
[1673932150396,0.00011658,21176.0,21175.0,0.00803256]
[1673932150637,0.00011658,21176.0,21175.0,0.08327256]
[1673932151160,0.00011658,21176.0,21175.0,0.08227256]
[1673932151427,0.01911658,21176.0,21175.0,0.01203256]
[1673932152519,0.00011658,21176.0,21175.0,0.00703256]
[1673932152804,0.00011658,21176.0,21175.0,0.00803256]
[1673932153336,0.07501658,21176.0,21175.0,0.00803256]
[1673932153597,0.3967791,21176.0,21175.0,0.00803256]
[1673932154895,0.3218791,21176.0,21175.0,0.00803256]
[1673932155209,3.1e-06,21176.0,21175.0,0.00803256]
[1673932156959,0.3968791,21176.0,21175.0,0.00803256]
[1673932157966,0.0750031,21176.0,21175.0,0.00803256]
[1673932158436,0.3968791,21176.0,21175.0,0.00803256]
[1673932158686,0.0750031,21176.0,21175.0,0.00803256]
[1673932159245,0.53795949,21176.0,21175.0,0.00803256]
[1673932159474,0.56295949,21176.0,21175.0,0.00803256]
[1673932159973,1.79529209,21176.0,21175.0,0.00803256]
[1673932160228,1.6542117,21176.0,21175.0,0.00803256]
[1673932160545,2.67457027,21176.0,21175.0,0.00803256]
[1673932160774,3.18659321,21176.0,21175.0,0.00803256]
[1673932161022,3.01921756,21176.0,21175.0,0.00803256]
[1673932161284,3.08986196,21176.0,21175.0,0.00803256]
[1673932161574,3.13405633,21176.0,21175.0,0.00803256]
[1673932162112,3.16588222,21176.0,21175.0,0.00703256]
[1673932162373,3.4676228,21176.0,21175.0,0.01203256]
[1673932162619,3.1486228,21176.0,21175.0,0.00703256]
[1673932162917,2.98905854,21176.0,21175.0,0.01303256]
[1673932163170,2.58831796,21176.0,21175.0,0.00703256]
[1673932163422,3.06660191,21176.0,21175.0,0.01303256]
[1673932163673,3.06660191,21176.0,21175.0,0.00703256]
[1673932163929,3.08460191,21176.0,21175.0,0.01303256]
[1673932164477,3.00880191,21176.0,21175.0,0.01303256]
[1673932164966,2.61926055,21176.0,21175.0,0.01303256]
[1673932165219,2.6897907,21176.0,21175.0,0.01303256]
[1673932165982,3.13122299,21176.0,21175.0,0.01303256]
[1673932166230,3.30899601,21176.0,21175.0,0.01303256]
[1673932166758,3.02625543,21176.0,21175.0,0.01303256]
[1673932166996,3.5003576,21176.0,21175.0,0.01303256]
[1673932167237,3.72967703,21176.0,21175.0,0.01303256]
[1673932167486,3.30597326,21176.0,21175.0,0.01303256]
[1673932167976,3.72967703,21176.0,21175.0,0.01303256]
[1673932168230,3.30597326,21176.0,21175.0,0.01303256]
[1673932169165,3.30600428,21176.0,21175.0,0.01303256]
[1673932169386,2.9842673,21176.0,21175.0,0.01303256]
[1673932169635,2.9842873,21176.0,21175.0,0.01303256]
[1673932170410,3.46272281,21176.0,21175.0,0.01303256]
[1673932170628,3.81720382,21176.0,21175.0,0.01303256]
[1673932170882,3.46422281,21176.0,21175.0,0.01303256]
[1673932172114,2.9857873,21176.0,21175.0,0.01303256]
[1673932172368,3.2682149,21176.0,21175.0,0.01303256]
[1673932172619,0.57401609,21175.0,21174.0,0.12295295]
[1673932172872,2.35807352,21175.0,21174.0,0.12295295]
[1673932173204,2.25807352,21175.0,21174.0,0.12295295]
[1673932173352,3.13248729,21175.0,21174.0,0.12295295]
[1673932173597,3.34432926,21175.0,21174.0,0.12295295]
[1673932173846,3.34433024,21175.0,21174.0,0.12295295]
[1673932174092,3.15648729,21175.0,21174.0,0.12895295]
[1673932174602,3.36831364,21175.0,21174.0,0.12895295]
[1673932174859,3.15648729,21175.0,21174.0,0.12895295]
[1673932175102,3.36832396,21175.0,21174.0,0.12895295]
[1673932176092,3.15648729,21175.0,21174.0,0.12895295]
[1673932176314,3.36831978,21175.0,21174.0,0.12895295]
[1673932177336,3.15648729,21175.0,21174.0,0.12895295]
[1673932177589,3.36834053,21175.0,21174.0,0.12895295]
[1673932177835,3.36833912,21175.0,21174.0,0.12895295]
[1673932178852,1.43337916,21175.0,21174.0,0.12895295]
[1673932179115,1.29214709,21175.0,21174.0,0.12895295]
[1673932179365,0.97027109,21175.0,21174.0,0.12895295]
[1673932179924,1.32335499,21175.0,21174.0,0.12895295]
[1673932180188,1.64523099,21175.0,21174.0,0.12895295]
[1673932180444,2.66550541,21175.0,21174.0,0.12895295]
[1673932180961,3.1427071,21175.0,21174.0,0.12895295]
[1673932181696,1.98588085,21175.0,21174.0,0.12895295]
[1673932182244,3.00149063,21175.0,21174.0,0.12895295]
[1673932182690,3.28391823,21175.0,21174.0,0.12895295]
[1673932185253,4.02614801,21175.0,21174.0,0.12895295]
[1673932185507,4.25962591,21175.0,21174.0,0.12895295]
[1673932185778,3.90659222,21175.0,21174.0,0.12895295]
[1673932186021,4.25962673,21175.0,21174.0,0.12895295]
[1673932186821,4.30005708,21175.0,21174.0,0.12895295]
[1673932187591,3.97718973,21175.0,21174.0,0.12895295]
[1673932189124,3.62415522,21175.0,21174.0,0.12895295]
[1673932190961,3.97753441,21175.0,21174.0,0.12295295]
[1673932191257,3.60015522,21175.0,21174.0,0.12295295]
[1673932191445,3.68615522,21175.0,21174.0,0.12295295]
[1673932191705,3.95356573,21175.0,21174.0,0.12295295]
[1673932191971,3.88004402,21175.0,21174.0,0.12395295]
[1673932192244,3.79404402,21175.0,21174.0,0.12295295]
[1673932192521,3.8801573,21175.0,21174.0,0.12395295]
[1673932192765,3.5801573,21175.0,21174.0,0.12395295]
[1673932193030,3.07227045,21175.0,21174.0,0.12395295]
[1673932193296,3.07227045,21175.0,21174.0,0.001]
[1673932193297,3.58061394,21175.0,21174.0,0.001]
[1673932193770,3.57211394,21175.0,21174.0,0.00088763]
[1673932194059,3.13446015,21175.0,21174.0,0.00088763]
[1673932194319,3.57210528,21175.0,21174.0,0.00088763]
[1673932194578,3.05916015,21175.0,21174.0,0.00088763]
[1673932195116,1.9727916,21175.0,21174.0,0.00088763]
[1673932195361,2.80803412,21175.0,21174.0,0.00088763]
[1673932195624,3.34708865,21175.0,21174.0,0.00088763]
[1673932196382,3.29123493,21175.0,21174.0,0.00088763]
[1673932197173,3.57418887,21175.0,21174.0,0.00088763]
[1673932197446,3.71192659,21175.0,21174.0,0.00088763]
[1673932198706,4.13563036,21175.0,21174.0,0.00088763]
[1673932201529,3.66127719,21175.0,21174.0,0.00088763]
[1673932202045,3.23757342,21175.0,21174.0,0.00088763]
[1673932202304,3.74517719,21175.0,21174.0,0.00088763]
[1673932203060,3.5326659,21175.0,21174.0,0.00088763]
[1673932203314,3.84919268,21175.0,21174.0,0.00088763]
[1673932203567,3.5326659,21175.0,21174.0,0.00088763]
[1673932203832,4.26886906,21175.0,21174.0,0.00088763]
[1673932204087,5.36988681,21175.0,21174.0,0.00088763]
[1673932204348,4.74614414,21175.0,21174.0,0.0006711]
[1673932204602,6.16368867,21175.0,21174.0,0.0006711]
[1673932205390,6.21156195,21175.0,21174.0,0.0006711]
[1673932205642,5.31451634,21175.0,21174.0,0.0006711]
[1673932206733,3.37034435,21175.0,21174.0,0.0006711]
[1673932206973,2.94567342,21175.0,21174.0,0.0006711]
[1673932208059,3.15659811,21175.0,21174.0,0.0006711]
[1673932208306,3.15659679,21175.0,21174.0,0.0006711]
[1673932208560,3.37033963,21175.0,21174.0,0.0006711]
[1673932208809,3.67033963,21175.0,21174.0,0.0006711]
[1673932209321,4.1444418,21175.0,21174.0,0.0006711]
[1673932209841,3.67033963,21175.0,21174.0,0.0006711]
[1673932210663,3.59493963,21175.0,21174.0,0.0006711]
[1673932210892,3.38101406,21175.0,21174.0,0.0006711]
[1673932211908,3.80555825,21175.0,21174.0,0.0006711]
[1673932212160,3.38101406,21175.0,21174.0,0.0006711]
[1673932212421,3.85511623,21175.0,21174.0,0.0006711]
[1673932212709,5.27276712,21175.0,21174.0,0.0006711]
[1673932213431,5.50890712,21175.0,21174.0,0.0006711]
[1673932215473,5.58470712,21175.0,21174.0,0.0006711]
[1673932215986,3.95631559,21175.0,21174.0,0.0006711]
[1673932216241,4.38074609,21175.0,21174.0,0.0006711]
[1673932216506,3.90664392,21175.0,21174.0,0.0006711]
[1673932216784,3.69417511,21175.0,21174.0,0.0006711]
[1673932218547,3.90660103,21175.0,21174.0,0.0006711]
[1673932219054,3.6941612,21175.0,21174.0,0.0006711]
[1673932219414,3.90657086,21175.0,21174.0,0.0006711]
[1673932219569,3.48221342,21175.0,21174.0,0.0006711]
[1673932220106,3.90657086,21175.0,21174.0,0.0006711]
[1673932220364,4.16826365,21175.0,21174.0,0.0006711]
[1673932220634,5.58592711,21175.0,21174.0,0.0006711]
[1673932221391,4.59265059,21175.0,21174.0,0.0006711]
[1673932221636,4.38071438,21175.0,21174.0,0.0006711]
[1673932222407,3.90661221,21175.0,21174.0,0.0006711]
[1673932223160,3.69403871,21175.0,21174.0,0.0006711]
[1673932224275,3.90662986,21175.0,21174.0,0.0006711]
[1673932224566,3.69407237,21175.0,21174.0,0.0006711]
[1673932225880,0.1,21174.0,21168.0,0.59873958]
[1673932226131,0.1,21174.0,21168.0,0.27584098]
[1673932226132,0.14147727,21171.0,21168.0,0.27584098]
[1673932226379,0.321876,21170.0,21167.0,0.22540577]
[1673932226632,0.14147727,21171.0,21167.0,0.22540577]
[1673932227363,0.14147727,21170.0,21167.0,0.08460623]
[1673932227616,0.18247727,21170.0,21167.0,0.08560623]
[1673932228407,0.041,21170.0,21167.0,0.08560623]
[1673932228641,0.14147727,21171.0,21167.0,0.69783177]
[1673932228900,0.086,21171.0,21168.0,1.02724592]
[1673932229151,0.08606,21171.0,21170.0,0.0754]
[1673932229421,6e-05,21171.0,21170.0,0.155481]
[1673932230209,0.00806,21171.0,21170.0,0.168481]
[1673932230481,0.008,21171.0,21170.0,0.168481]
[1673932242950,0.38082752,21173.0,21170.0,0.30928054]
[1673932243199,0.38082752,21173.0,21170.0,0.55068834]
[1673932243441,0.38075288,21173.0,21171.0,0.080072]
[1673932243676,0.38075288,21173.0,21170.0,0.53768834]
[1673932243928,0.42175288,21173.0,21171.0,0.080071]
[1673932244178,0.42175288,21173.0,21170.0,0.53968834]
[1673932244420,0.42175288,21173.0,21171.0,0.080071]
[1673932244658,0.42175288,21173.0,21170.0,0.69056454]
[1673932244659,0.42175288,21173.0,21170.0,1.01205334]
[1673932244910,0.38075288,21173.0,21171.0,0.080071]
[1673932245366,0.56323015,21173.0,21170.0,0.547765]
[1673932245627,0.46275288,21173.0,21170.0,0.0774]
[1673932245911,0.38075288,21173.0,21171.0,0.080071]
[1673932246147,0.42175288,21173.0,21171.0,0.082071]
[1673932246405,0.38075288,21173.0,21170.0,0.0704]
[1673932246657,0.42175288,21173.0,21171.0,0.080071]
[1673932247126,0.38075288,21173.0,21171.0,0.190971]
[1673932247345,0.38075288,21173.0,21171.0,0.1109]
[1673932247563,0.38075288,21173.0,21172.0,0.080067]
[1673932247820,0.38075288,21173.0,21171.0,0.1109]
[1673932248033,0.42175288,21173.0,21171.0,0.1129]
[1673932248284,0.42175288,21173.0,21172.0,0.080066]
[1673932248550,0.56323015,21173.0,21171.0,0.1129]
[1673932249042,0.52223015,21173.0,21171.0,0.1109]
[1673932250104,0.56323015,21173.0,21171.0,0.1129]
[1673932250763,0.42175288,21173.0,21171.0,0.1129]
[1673932251021,0.56323015,21173.0,21171.0,0.1129]
[1673932251271,0.42175288,21173.0,21171.0,0.1129]
[1673932251630,0.56323015,21173.0,21171.0,0.1129]
[1673932252992,0.42175288,21173.0,21171.0,0.1129]
[1673932253435,0.42175288,21173.0,21172.0,0.080066]
[1673932253871,0.56323015,21173.0,21171.0,0.1129]
[1673932254331,0.56323015,21173.0,21171.0,0.1109]
[1673932254551,0.52223015,21173.0,21172.0,0.002]
[1673932254773,0.56323015,21173.0,21172.0,0.002]
[1673932254989,0.52223015,21173.0,21171.0,0.1109]
[1673932255231,0.56323015,21173.0,21171.0,0.1129]
[1673932255461,0.52223015,21173.0,21171.0,0.1109]
[1673932255678,0.56323015,21173.0,21172.0,0.002]
[1673932255891,0.42175288,21173.0,21172.0,0.002]
[1673932256104,0.46275288,21173.0,21172.0,0.002]
[1673932256984,0.38075288,21173.0,21171.0,0.1109]
[1673932257641,0.38075288,21173.0,21172.0,0.080066]
[1673932258310,0.38075288,21173.0,21171.0,0.1109]
[1673932258591,0.04956486,21175.0,21172.0,0.303266]
[1673932258850,0.041,21173.0,21172.0,0.44512549]
[1673932259113,0.04956486,21175.0,21172.0,0.55506254]
[1673932259370,0.04956486,21175.0,21174.0,0.2225]
[1673932259617,0.04956486,21175.0,21174.0,0.6240438]
[1673932259898,0.38256773,21177.0,21174.0,0.6240438]
[1673932260152,0.38256773,21177.0,21176.0,0.1116]
[1673932260443,0.38256773,21177.0,21176.0,0.191642]
[1673932260636,0.38256773,21177.0,21176.0,0.1116]
[1673932261188,1.72413121,21177.0,21176.0,0.191639]
[1673932261444,0.77926091,21177.0,21176.0,0.1116]
[1673932261700,1.76712883,21177.0,21176.0,0.1146]
[1673932262211,0.610045,21177.0,21176.0,0.1146]
[1673932262988,0.610045,21177.0,21176.0,0.194639]
[1673932263248,0.610045,21177.0,21176.0,0.1146]
[1673932264012,0.610045,21177.0,21176.0,0.194639]
[1673932264787,0.46856773,21177.0,21176.0,0.194639]
[1673932265304,0.086,21177.0,21176.0,0.889171]
[1673932265642,0.086,21177.0,21176.0,0.305339]
[1673932270837,0.086,21177.0,21176.0,0.19362736]
[1673932274366,0.0476258,21179.0,21177.0,0.03999999]
[1673932274645,0.0476258,21179.0,21178.0,0.19072595]
[1673932274934,0.00885851,21180.0,21178.0,1.39635681]
[1673932275177,0.00885851,21180.0,21179.0,0.2232]
[1673932275436,0.00885851,21180.0,21179.0,0.62233686]
[1673932275695,0.00885851,21180.0,21179.0,0.303221]
[1673932276734,0.00885851,21180.0,21179.0,0.775386]
[1673932276992,0.00885851,21180.0,21179.0,0.915386]
[1673932277568,0.00885851,21180.0,21179.0,1.23450186]
[1673932277832,0.00885851,21180.0,21179.0,0.915386]
[1673932278878,0.00885851,21180.0,21179.0,1.12290186]
[1673932279132,0.00885851,21180.0,21179.0,0.803786]
[1673932279402,0.00885851,21180.0,21179.0,0.220021]
[1673932280482,0.20379851,21180.0,21179.0,0.14]
[1673932281533,0.31519851,21180.0,21179.0,0.14]
[1673932281783,0.63707451,21180.0,21179.0,0.14]
[1673932282576,0.31519851,21180.0,21179.0,0.14]
[1673932283098,0.23415851,21180.0,21179.0,0.14]
[1673932283899,0.55603451,21180.0,21179.0,0.14]
[1673932285938,0.55373451,21180.0,21179.0,0.14]
[1673932288043,0.23185851,21180.0,21179.0,0.14]
[1673932288780,0.55373451,21180.0,21179.0,0.14]
[1673932289040,0.54873451,21180.0,21179.0,0.14]
[1673932289511,0.22685851,21180.0,21179.0,0.14]
[1673932292150,0.22835851,21180.0,21179.0,0.14]
[1673932292662,0.55023451,21180.0,21179.0,0.14]
[1673932292927,0.69171178,21180.0,21179.0,0.14]
[1673932293189,0.69171178,21180.0,21179.0,0.139032]
[1673932293702,0.90392769,21180.0,21179.0,0.139032]
[1673932293953,0.69171178,21180.0,21179.0,0.139032]
[1673932294248,0.90392769,21180.0,21179.0,0.139032]
[1673932295530,1.70723015,21180.0,21179.0,0.139032]
[1673932296037,0.58177299,21180.0,21179.0,0.139032]
[1673932296550,0.22835851,21180.0,21179.0,0.139032]
[1673932297318,0.36955708,21180.0,21179.0,0.139032]
[1673932298323,1.66827573,21180.0,21179.0,0.139032]
[1673932298545,1.99015173,21180.0,21179.0,0.139032]
[1673932299049,1.84844919,21180.0,21179.0,0.139032]
[1673932299556,1.77794095,21180.0,21179.0,0.139032]
[1673932300080,1.9897924,21180.0,21179.0,0.139032]
[1673932300334,1.77794095,21180.0,21179.0,0.139032]
[1673932300590,1.84809126,21180.0,21179.0,0.139032]